lending/lending_fUSD_20240106
["ID","MTS","AMOUNT","RATE_DAILY","PERIOD"]
[310353937,1704501041144,-500.0,0.00028401,2]
[310353938,1704501041153,-500.0,0.00028401,2]
[310353939,1704501041162,-626.18,0.00028401,2]
[310353940,1704501041171,-500.0,0.00028401,2]
[310353941,1704501041181,-500.0,0.00028401,2]
[310353942,1704501041190,-500.0,0.00028401,2]
[310353943,1704501041199,-500.0,0.00028401,2]
[310353944,1704501041208,-500.0,0.00028401,2]
[310353945,1704501041217,-500.0,0.00028401,2]
[310353947,1704501041226,-500.0,0.00028401,2]
[310353948,1704501041235,-500.0,0.00028401,2]
[310353949,1704501041244,-500.0,0.00028401,2]
[310353950,1704501041253,-500.0,0.00028401,2]
[310353952,1704501041262,-500.0,0.00028401,2]
[310353954,1704501041271,-500.0,0.00028401,2]
[310353955,1704501041281,-500.0,0.00028401,2]
[310353956,1704501041290,-514.85,0.00028401,2]
[310353957,1704501041301,-500.0,0.00028401,2]
[310353958,1704501041311,-500.0,0.00028401,2]
[310353959,1704501041320,-500.0,0.00028401,2]
[310353960,1704501041329,-500.0,0.00028401,2]
[310353961,1704501041338,-507.31,0.00028401,2]
[310353962,1704501041347,-500.0,0.00028401,2]
[310353963,1704501041356,-500.0,0.00028401,2]
[310353964,1704501041365,-500.0,0.00028401,2]
[310353965,1704501041374,-500.0,0.00028401,2]
[310353966,1704501041384,-500.0,0.00028401,2]
[310353967,1704501041393,-500.0,0.00028401,2]
[310353968,1704501041402,-500.0,0.00028401,2]
[310353969,1704501041411,-500.0,0.00028401,2]
[310353970,1704501041420,-500.0,0.00028401,2]
[310353971,1704501041430,-500.0,0.00028401,2]
[310353972,1704501041439,-500.0,0.00028401,2]
[310353973,1704501041447,-500.0,0.00028401,2]
[310353974,1704501041456,-500.0,0.00028401,2]
[310353975,1704501041466,-500.0,0.00028401,2]
[310353976,1704501041475,-500.0,0.00028401,2]
[310353977,1704501041484,-500.0,0.00028401,2]
[310353978,1704501041494,-648.96,0.00028401,2]
[310353979,1704501041504,-500.0,0.00028401,2]
[310353980,1704501041513,-500.0,0.00028401,2]
[310353981,1704501041522,-741.6,0.00028401,2]
[310353982,1704501041531,-1137.85,0.00028401,2]
[310353983,1704501041541,-816.33,0.00028401,2]
[310353984,1704501041551,-547.02,0.00028401,2]
[310353985,1704501041561,-621.0,0.00028401,2]
[310353986,1704501041570,-500.0,0.00028401,2]
[310353987,1704501041580,-500.0,0.00028401,2]
[310353988,1704501041589,-500.0,0.00028401,2]
[310353989,1704501041599,-500.0,0.00028401,2]
[310353990,1704501041608,-500.0,0.00028401,2]
[310353991,1704501041617,-500.0,0.00028401,2]
[310353992,1704501041626,-500.0,0.00028401,2]
[310353993,1704501041637,-504.15114806,0.00028401,2]
[310353994,1704501041646,-502.69236882,0.00028401,2]
[310353995,1704501041656,-840.01,0.00028401,2]
[310353996,1704501041666,-500.0,0.00028401,2]
[310353997,1704501041675,-500.0,0.00028401,2]
[310353998,1704501041684,-500.0,0.00028401,2]
[310353999,1704501041693,-500.0,0.00028401,2]
[310354000,1704501041702,-500.0,0.00028401,2]
[310354001,1704501041711,-500.0,0.00028401,2]
[310354002,1704501041721,-338.66447969,0.00028401,2]
[310354003,1704501041730,-500.0,0.00028401,2]
[310354004,1704501041741,-500.0,0.00028401,2]
[310354005,1704501041750,-499.78811345,0.00028401,2]
[310354006,1704501041762,-500.0,0.00028401,2]
[310354007,1704501041771,-500.0,0.00028401,2]
[310354008,1704501041780,-500.0,0.00028401,2]
[310354009,1704501041789,-500.0,0.00028401,2]
[310354010,1704501041799,-500.0,0.00028401,2]
[310354011,1704501041810,-500.0,0.00028401,2]
[310354012,1704501041819,-500.0,0.00028401,2]
[310354013,1704501041829,-570.39,0.00028401,2]
[310354014,1704501041840,-500.0,0.00028401,2]
[310354015,1704501041851,-500.0,0.00028401,2]
[310354016,1704501041862,-500.0,0.00028401,2]
[310354017,1704501041874,-500.0,0.00028401,2]
[310354018,1704501041883,-500.0,0.00028401,2]
[310354019,1704501041894,-516.89522519,0.00028401,2]
[310354020,1704501041905,-285.31,0.00028401,2]
[310354021,1704501041915,-500.0,0.00028401,2]
[310354022,1704501041924,-500.0,0.00028401,2]
[310354023,1704501041935,-500.0,0.00028401,2]
[310354024,1704501041944,-1047.42,0.00028401,2]
[310354025,1704501041953,-527.19,0.00028401,2]
[310354026,1704501041964,-500.0,0.00028401,2]
[310354027,1704501041973,-500.0,0.00028401,2]
[310354028,1704501041984,-500.0,0.00028401,2]
[310354029,1704501041994,-500.0,0.00028401,2]
[310354030,1704501042003,-500.0,0.00028401,2]
[310354031,1704501042013,-500.0,0.00028401,2]
[310354032,1704501042023,-500.0,0.00028401,2]
[310354033,1704501042032,-500.0,0.00028401,2]
[310354034,1704501042042,-500.0,0.00028401,2]
[310354035,1704501042051,-500.0,0.00028401,2]
[310354036,1704501042062,-500.0,0.00028401,2]
[310354037,1704501042071,-500.0,0.00028401,2]
[310354038,1704501042080,-500.0,0.00028401,2]
[310354039,1704501042089,-573.67,0.00028401,2]
[310354040,1704501042099,-500.0,0.00028401,2]
[310354041,1704501042108,-500.0,0.00028401,2]
[310354042,1704501042117,-500.0,0.00028401,2]
[310354043,1704501042126,-500.0,0.00028401,2]
[310354044,1704501042135,-500.0,0.00028401,2]
[310354045,1704501042144,-500.0,0.00028401,2]
[310354046,1704501042153,-500.0,0.00028401,2]
[310354047,1704501042162,-500.0,0.00028401,2]
[310354048,1704501042171,-5852.96,0.00028401,2]
[310354049,1704501042181,-516.76,0.00028401,2]
[310354050,1704501042191,-500.0,0.00028401,2]
[310354051,1704501042200,-711.41,0.00028401,2]
[310354052,1704501042210,-500.0,0.00028401,2]
[310354053,1704501042219,-1393.92,0.00028401,2]
[310354054,1704501042229,-500.0,0.00028401,2]
[310354055,1704501042238,-500.0,0.00028401,2]
[310354056,1704501042247,-2442.5,0.00028401,2]
[310354057,1704501042256,-705.95,0.00028401,2]
[310354058,1704501042266,-500.0,0.00028401,2]
[310354059,1704501042275,-1564.79,0.00028401,2]
[310354060,1704501042285,-500.0,0.00028401,2]
[310354061,1704501042294,-500.0,0.00028401,2]
[310354062,1704501042303,-500.0,0.00028401,2]
[310354063,1704501042313,-500.0,0.00028401,2]
[310354064,1704501042323,-6082.69,0.00028401,2]
[310354065,1704501042332,-852.41,0.00028401,2]
[310354066,1704501042342,-677.92,0.00028401,2]
[310354067,1704501042351,-500.0,0.00028401,2]
[310354068,1704501042360,-500.0,0.00028401,2]
[310354069,1704501042369,-893.16,0.00028401,2]
[310354070,1704501042379,-500.0,0.00028401,2]
[310354071,1704501042388,-500.0,0.00028401,2]
[310354072,1704501042397,-4798.34,0.00028401,2]
[310354073,1704501042406,-500.0,0.00028401,2]
[310354074,1704501042415,-500.0,0.00028401,2]
[310354076,1704501042425,-606.12,0.00028401,2]
[310354077,1704501042434,-500.0,0.00028401,2]
[310354078,1704501042443,-714.18,0.00028401,2]
[310354079,1704501042452,-500.0,0.00028401,2]
[310354080,1704501042461,-3048.45,0.00028401,2]
[310354081,1704501042470,-284.7533623,0.00028401,2]
[310354082,1704501042479,-500.0,0.00028401,2]
[310354083,1704501042488,-500.0,0.00028401,2]
[310354085,1704501042497,-585.72,0.00028401,2]
[310354086,1704501042506,-500.0,0.00028401,2]
[310354087,1704501042515,-5384.3,0.00028401,2]
[310354088,1704501042524,-500.0,0.00028401,2]
[310354089,1704501042534,-500.0,0.00028401,2]
[310354090,1704501042543,-541.99,0.00028401,2]
[310354091,1704501042553,-500.0,0.00028401,2]
[310354092,1704501042563,-500.0,0.00028401,2]
[310354093,1704501042573,-3392.15,0.00028401,2]
[310354094,1704501042582,-500.0,0.00028401,2]
[310354095,1704501042592,-245.76,0.00028401,2]
[310354096,1704501042601,-1381.14,0.00028401,2]
[310354098,1704501042610,-3318.51,0.00028401,2]
[310354101,1704501042619,-2415.36,0.00028401,2]
[310354103,1704501042628,-500.0,0.00028401,2]
[310354105,1704501042637,-635.04894302,0.00028401,2]
[310354107,1704501042647,-500.0,0.00028401,2]
[310354109,1704501042654,-549.05,0.00028401,2]
[310354111,1704501042664,-2683.98,0.00028401,2]
[310354113,1704501042674,-622.06,0.00028401,2]
[310354115,1704501042683,-500.0,0.00028401,2]
[310354117,1704501042692,-500.0,0.00028401,2]
[310354119,1704501042702,-500.0,0.00028401,2]
[310354121,1704501042711,-500.0,0.00028401,2]
[310354122,1704501042720,-500.0,0.00028401,2]
[310354123,1704501042729,-6813.14,0.00028401,2]
[310354124,1704501042738,-500.0,0.00028401,2]
[310354125,1704501042747,-4220.42,0.00028401,2]
[310354126,1704501042756,-500.0,0.00028401,2]
[310354127,1704501042766,-500.0,0.00028401,2]
[310354128,1704501042776,-500.0,0.00028401,2]
[310354129,1704501042785,-549.43,0.00028401,2]
[310354130,1704501042794,-889.41,0.00028401,2]
[310354131,1704501042804,-166.57436901,0.00028401,2]
[310354132,1704501042813,-500.0,0.00028401,2]
[310354133,1704501042823,-500.0,0.00028401,2]
[310354134,1704501042834,-1847.23,0.00028401,2]
[310354135,1704501042843,-500.0,0.00028401,2]
[310354136,1704501042854,-500.0,0.00028401,2]
[310354137,1704501042864,-500.0,0.00028401,2]
[310354138,1704501042878,-500.0,0.00028401,2]
[310354139,1704501042887,-1727.78,0.00028401,2]
[310354140,1704501042896,-500.0,0.00028401,2]
[310354141,1704501042905,-500.0,0.00028401,2]
[310354142,1704501042915,-938.64,0.00028401,2]
[310354143,1704501042925,-500.0,0.00028401,2]
[310354144,1704501042935,-808.91,0.00028401,2]
[310354145,1704501042944,-940.92,0.00028401,2]
[310354146,1704501042954,-500.0,0.00028401,2]
[310354147,1704501042964,-1081.11,0.00028401,2]
[310354148,1704501042973,-578.44,0.00028401,2]
[310354149,1704501042982,-500.0,0.00028401,2]
[310354150,1704501042992,-500.0,0.00028401,2]
[310354151,1704501043002,-707.87,0.00028401,2]
[310354152,1704501043011,-260.79754903,0.00028401,2]
[310354153,1704501043021,-2168.88,0.00028401,2]
[310354154,1704501043030,-500.0,0.00028401,2]
[310354155,1704501043038,-4213.37,0.00028401,2]
[310354156,1704501043048,-500.0,0.00028401,2]
[310354157,1704501043057,-500.0,0.00028401,2]
[310354158,1704501043067,-2306.92,0.00028401,2]
[310354159,1704501043076,-500.0,0.00028401,2]
[310354160,1704501043085,-500.0,0.00028401,2]
[310354161,1704501043095,-500.0,0.00028401,2]
[310354162,1704501043104,-532.1,0.00028401,2]
[310354163,1704501043114,-500.0,0.00028401,2]
[310354164,1704501043123,-4177.31,0.00028401,2]
[310354166,1704501043132,-957.55,0.00028401,2]
[310354167,1704501043142,-500.0,0.00028401,2]
[310354168,1704501043151,-555.13421294,0.00028401,2]
[310354169,1704501043161,-500.0,0.00028401,2]
[310354170,1704501043169,-255.92,0.00028402,2]
[310354171,1704501043178,-637.83987245,0.00028402,2]
[310354172,1704501043187,-2021.75,0.00028402,2]
[310354173,1704501043197,-2443.26,0.00028402,2]
[310354174,1704501043206,-3003.12,0.00028402,2]
[310354175,1704501043215,-1902.72,0.00028402,2]
[310354176,1704501043225,-769.62,0.00028402,2]
[310354177,1704501043234,-2162.58,0.00028402,2]
[310354178,1704501043243,-1575.26,0.00028402,2]
[310354179,1704501043253,-500.0,0.00028402,2]
[310354180,1704501043262,-9732.17,0.00028402,2]
[310354181,1704501043271,-532.32,0.00028402,2]
[310354182,1704501043281,-623.74,0.00028402,2]
[310354183,1704501043289,-1599.53,0.00028402,2]
[310354184,1704501043299,-3747.26,0.00028402,2]
[310354185,1704501043309,-4671.22,0.00028402,2]
[310354186,1704501043318,-500.0,0.00028402,2]
[310354187,1704501043327,-913.08,0.00028402,2]
[310354188,1704501043336,-2937.63,0.00028402,2]
[310354189,1704501043346,-3034.0,0.00028402,2]
[310354190,1704501043355,-500.0,0.00028402,2]
[310354191,1704501043364,-500.0,0.00028402,2]
[310354192,1704501043374,-4608.29,0.00028402,2]
[310354193,1704501043383,-3624.96,0.00028402,2]
[310354194,1704501043392,-1239.84,0.00028402,2]
[310354195,1704501043402,-1901.11,0.00028402,2]
[310354196,1704501043410,-500.0,0.00028402,2]
[310354197,1704501043420,-4586.54,0.00028402,2]
[310354198,1704501043429,-646.38,0.00028402,2]
[310354199,1704501043438,-1636.49,0.00028402,2]
[310354200,1704501043448,-1294.35,0.00028402,2]
[310354201,1704501043457,-2814.63,0.00028402,2]
[310354202,1704501043466,-2410.34,0.00028402,2]
[310354203,1704501043475,-1106.62,0.00028402,2]
[310354204,1704501043484,-156.49589536,0.00028402,2]
[310354205,1704501043492,-516.14136859,0.00028402,2]
[310354206,1704501043502,-802.78,0.00028403,2]
[310354207,1704501043511,-500.0,0.00028403,2]
[310354208,1704501043520,-500.0,0.00028403,2]
[310354209,1704501043530,-500.0,0.00028403,2]
[310354210,1704501043541,-500.0,0.00028403,2]
[310354211,1704501043553,-500.0,0.00028403,2]
[310354212,1704501043564,-500.0,0.00028403,2]
[310354213,1704501043573,-500.0,0.00028403,2]
[310354214,1704501043584,-500.0,0.00028403,2]
[310354215,1704501043593,-500.0,0.00028403,2]
[310354216,1704501043603,-500.0,0.00028403,2]
[310354217,1704501043613,-500.0,0.00028403,2]
[310354218,1704501043622,-500.0,0.00028403,2]
[310354219,1704501043632,-500.0,0.00028403,2]
[310354220,1704501043641,-500.0,0.00028403,2]
[310354221,1704501043650,-500.0,0.00028403,2]
[310354222,1704501043659,-975.81,0.00028403,2]
[310354223,1704501043857,-500.0,0.00028403,2]
[310354224,1704501043873,-500.0,0.00028403,2]
[310354225,1704501043883,-500.0,0.00028403,2]
[310354226,1704501043892,-500.0,0.00028403,2]
[310354227,1704501043902,-500.0,0.00028403,2]
[310354228,1704501043911,-574.07,0.00028403,2]
[310354229,1704501043921,-500.0,0.00028403,2]
[310354230,1704501043931,-500.0,0.00028403,2]
[310354231,1704501043940,-500.0,0.00028403,2]
[310354232,1704501043950,-500.0,0.00028403,2]
[310354233,1704501043960,-833.74,0.00028403,2]
[310354234,1704501043969,-161.77910355,0.00028403,2]
[310354235,1704501043978,-500.0,0.00028403,2]
[310354236,1704501043988,-500.0,0.00028403,2]
[310354237,1704501043997,-500.0,0.00028403,2]
[310354238,1704501044007,-500.0,0.00028403,2]
[310354239,1704501044017,-500.0,0.00028403,2]
[310354240,1704501044027,-249.86952079,0.00028403,2]
[310354241,1704501044037,-621.97,0.00028403,2]
[310354242,1704501044048,-680.45,0.00028403,2]
[310354243,1704501044057,-500.0,0.00028403,2]
[310354244,1704501044066,-500.0,0.00028403,2]
[310354245,1704501044076,-500.0,0.00028403,2]
[310354246,1704501044086,-500.0,0.00028403,2]
[310354247,1704501044095,-500.0,0.00028403,2]
[310354248,1704501044105,-500.0,0.00028403,2]
[310354249,1704501044115,-500.0,0.00028403,2]
[310354250,1704501044125,-500.0,0.00028403,2]
[310354251,1704501044135,-500.0,0.00028403,2]
[310354252,1704501044146,-500.0,0.00028403,2]
[310354253,1704501044156,-500.0,0.00028403,2]
[310354254,1704501044166,-500.0,0.00028403,2]
[310354255,1704501044175,-500.0,0.00028403,2]
[310354256,1704501044185,-500.0,0.00028403,2]
[310354257,1704501044195,-533.6,0.00028403,2]
[310354258,1704501044204,-500.0,0.00028403,2]
[310354259,1704501044214,-500.0,0.00028403,2]
[310354260,1704501044223,-500.0,0.00028403,2]
[310354261,1704501044233,-500.0,0.00028403,2]
[310354262,1704501044242,-1258.32,0.00028403,2]
[310354263,1704501044252,-1536.18,0.00028403,2]
[310354264,1704501044262,-500.0,0.00028403,2]
[310354265,1704501044273,-500.0,0.00028403,2]
[310354266,1704501044283,-500.0,0.00028403,2]
[310354267,1704501044292,-500.0,0.00028403,2]
[310354268,1704501044303,-500.0,0.00028403,2]
[310354269,1704501044314,-500.0,0.00028403,2]
[310354270,1704501044323,-500.0,0.00028403,2]
[310354271,1704501044333,-500.0,0.00028403,2]
[310354272,1704501044343,-1213.53,0.00028403,2]
[310354273,1704501044354,-500.0,0.00028403,2]
[310354274,1704501044363,-500.0,0.00028403,2]
[310354275,1704501044372,-1185.59,0.00028403,2]
[310354276,1704501044381,-500.0,0.00028403,2]
[310354277,1704501044392,-780.08,0.00028403,2]
[310354278,1704501044402,-500.0,0.00028403,2]
[310354279,1704501044411,-500.0,0.00028403,2]
[310354280,1704501044420,-610.32,0.00028403,2]
[310354281,1704501044429,-500.0,0.00028403,2]
[310354282,1704501044439,-500.0,0.00028403,2]
[310354283,1704501044448,-500.0,0.00028403,2]
[310354284,1704501044457,-500.0,0.00028403,2]
[310354285,1704501044466,-500.0,0.00028403,2]
[310354286,1704501044476,-500.0,0.00028403,2]
[310354287,1704501044485,-500.0,0.00028403,2]
[310354288,1704501044494,-500.0,0.00028403,2]
[310354289,1704501044504,-500.0,0.00028403,2]
[310354290,1704501044513,-500.0,0.00028403,2]
[310354291,1704501044522,-500.0,0.00028403,2]
[310354292,1704501044532,-500.0,0.00028403,2]
[310354293,1704501044541,-500.0,0.00028403,2]
[310354294,1704501044551,-500.0,0.00028403,2]
[310354295,1704501044560,-500.0,0.00028403,2]
[310354296,1704501044570,-500.0,0.00028403,2]
[310354297,1704501044579,-500.0,0.00028403,2]
[310354298,1704501044588,-500.0,0.00028403,2]
[310354299,1704501044597,-500.0,0.00028403,2]
[310354300,1704501044606,-500.0,0.00028403,2]
[310354301,1704501044615,-500.0,0.00028403,2]
[310354302,1704501044624,-500.0,0.00028403,2]
[310354303,1704501044633,-500.0,0.00028403,2]
[310354304,1704501044642,-500.0,0.00028403,2]
[310354305,1704501044653,-956.45,0.00028403,2]
[310354306,1704501044662,-500.0,0.00028403,2]
[310354307,1704501044671,-764.5,0.00028403,2]
[310354308,1704501044681,-500.0,0.00028403,2]
[310354309,1704501044690,-500.0,0.00028403,2]
[310354310,1704501044699,-500.0,0.00028403,2]
[310354311,1704501044709,-500.0,0.00028403,2]
[310354312,1704501044718,-813.37,0.00028403,2]
[310354313,1704501044728,-500.0,0.00028403,2]
[310354314,1704501044737,-507.2,0.00028403,2]
[310354315,1704501044747,-500.0,0.00028403,2]
[310354316,1704501044758,-500.0,0.00028403,2]
[310354317,1704501044767,-725.15,0.00028403,2]
[310354318,1704501044777,-527.1,0.00028403,2]
[310354319,1704501044786,-500.0,0.00028403,2]
[310354320,1704501044796,-500.0,0.00028403,2]
[310354321,1704501044805,-2603.94,0.00028403,2]
[310354322,1704501044814,-500.0,0.00028403,2]
[310354323,1704501044824,-500.0,0.00028403,2]
[310354324,1704501044834,-571.37661002,0.00028403,2]
[310354325,1704501044844,-500.0,0.00028403,2]
[310354326,1704501044854,-500.0,0.00028403,2]
[310354327,1704501044863,-1453.12,0.00028403,2]
[310354328,1704501044875,-718.07,0.00028403,2]
[310354329,1704501044885,-500.0,0.00028403,2]
[310354330,1704501044895,-500.0,0.00028403,2]
[310354331,1704501044905,-517.52,0.00028403,2]
[310354332,1704501044914,-500.0,0.00028403,2]
[310354333,1704501044923,-500.0,0.00028403,2]
[310354334,1704501044932,-500.0,0.00028403,2]
[310354335,1704501044942,-210.15,0.00028424,2]
[310354336,1704501044952,-250.0,0.00028447,2]
[310354337,1704501044961,-333.40106,0.00028448,2]
[310354338,1704501044971,-624.18,0.00028455,2]
[310354339,1704501044980,-694.90571069,0.00028476,2]
[310354340,1704501044990,-1616.53,0.00028493,2]
[310354341,1704501044999,-3062.69,0.00028493,2]
[310354342,1704501045010,-2976.52,0.00028493,2]
[310354343,1704501045019,-595.64,0.00028493,2]
[310354344,1704501045028,-1905.3,0.00028493,2]
[310354345,1704501045038,-500.0,0.00028493,2]
[310354346,1704501045047,-16543.16,0.00028493,2]
[310354347,1704501045056,-500.0,0.00028493,2]
[310354348,1704501045066,-500.0,0.00028493,2]
[310354349,1704501045075,-500.0,0.00028493,2]
[310354350,1704501045084,-1484.61,0.00028493,2]
[310354351,1704501045094,-996.96,0.00028493,2]
[310354352,1704501045103,-242.34621723,0.00028493,2]
[310354353,1704501045112,-500.0,0.00028493,2]
[310354354,1704501045122,-500.0,0.00028493,2]
[310354355,1704501045131,-500.0,0.00028493,2]
[310354356,1704501045140,-500.0,0.00028493,2]
[310354357,1704501045150,-984.05,0.00028493,2]
[310354358,1704501045159,-3124.17,0.00028493,2]
[310354359,1704501045169,-500.0,0.00028493,2]
[310354360,1704501045179,-393.58,0.00028505,2]
[310354361,1704501045189,-680.0,0.00028548,4]
[310354362,1704501045198,-333.40106,0.00028548,2]
[310354363,1704501045208,-210.15,0.00028561,2]
[310354364,1704501045218,-208.0,0.00028568,8]
[310354365,1704501045227,-1606.58,0.00028574,2]
[310354366,1704501045237,-1717.37,0.00028574,2]
[310354367,1704501045246,-500.0,0.00028574,2]
[310354368,1704501045255,-500.0,0.00028574,2]
[310354369,1704501045265,-5699.31,0.00028574,2]
[310354370,1704501045274,-966.01,0.00028574,2]
[310354371,1704501045283,-626.07,0.00028574,2]
[310354372,1704501045293,-996.55,0.00028574,2]
[310354373,1704501045302,-3088.07,0.00028574,2]
[310354374,1704501045311,-626.56,0.00028574,2]
[310354375,1704501045322,-2714.29,0.00028574,2]
[310354376,1704501045332,-1900.13,0.00028574,2]
[310354377,1704501045342,-28954.9,0.00028574,2]
[310354378,1704501045351,-566.63,0.00028574,2]
[310354379,1704501045362,-1501.2,0.00028574,2]
[310354380,1704501045372,-1450.39,0.00028574,2]
[310354381,1704501045382,-1313.68,0.00028574,2]
[310354382,1704501045392,-1867.18,0.00028574,2]
[310354383,1704501045402,-1245.09,0.00028574,2]
[310354384,1704501045412,-815.97,0.00028574,2]
[310354385,1704501045421,-1565.45,0.00028574,2]
[310354386,1704501045430,-500.0,0.00028574,2]
[310354387,1704501045440,-1975.6,0.00028574,2]
[310354388,1704501045450,-500.0,0.00028574,2]
[310354389,1704501045459,-1033.08,0.00028574,2]
[310354390,1704501045468,-2106.78,0.00028574,2]
[310354391,1704501045478,-1554.3,0.00028574,2]
[310354392,1704501045487,-1289.23,0.00028574,2]
[310354393,1704501045499,-1555.83,0.00028574,2]
[310354394,1704501045509,-869.18,0.00028574,2]
[310354396,1704501045519,-756.68,0.00028574,2]
[310354397,1704501045529,-500.0,0.00028574,2]
[310354398,1704501045540,-2587.9,0.00028574,2]
[310354399,1704501045550,-3360.36,0.00028574,2]
[310354400,1704501045559,-2212.57,0.00028574,2]
[310354401,1704501045570,-1526.92,0.00028574,2]
[310354404,1704501045579,-3606.61,0.00028574,2]
[310354407,1704501045588,-2135.78,0.00028574,2]
[310354410,1704501045597,-25111.93,0.00028574,2]
[310354413,1704501045606,-1866.57,0.00028574,2]
[310354415,1704501045616,-2701.87,0.00028574,2]
[310354417,1704501045626,-3023.67,0.00028574,2]
[310354419,1704501045637,-7876.63,0.00028574,2]
[310354421,1704501045647,-1633.27,0.00028574,2]
[310354424,1704501045664,-1354.63,0.00028574,2]
[310354426,1704501045679,-1821.74,0.00028574,2]
[310354427,1704501045694,-2403.37,0.00028574,2]
[310354428,1704501045706,-154.49037017,0.00028575,2]
[310354429,1704501045720,-2204.6010114,0.00028575,2]
[310354430,1704501045735,-538.97,0.00028577,2]
[310354431,1704501045750,-83111.64729621,0.00028577,2]
[310354432,1704501046445,-43962.08030379,0.00028577,2]
[310354433,1704501046458,-500.0,0.00028577,2]
[310354434,1704501046470,-1547.0,0.00028603,4]
[310354435,1704501046482,-353.0,0.00028616,5]
[310354436,1704501046495,-50000.0,0.00028636,7]
[310354437,1704501046507,-333.40106,0.00028648,2]
[310354438,1704501046519,-200.22644395,0.00028656,2]
[310354439,1704501046531,-424.90560273,0.00028663,4]
[310354440,1704501046544,-393.58,0.00028664,2]
[310354441,1704501046557,-500.0,0.00028675,2]
[310354442,1704501046568,-500.0,0.00028675,2]
[310354443,1704501046580,-550.24,0.00028675,2]
[310354444,1704501046593,-500.0,0.00028675,2]
[310354445,1704501046605,-612.48,0.00028675,2]
[310354446,1704501046620,-300.42688441,0.00028675,2]
[310354447,1704501046631,-500.0,0.00028675,2]
[310354448,1704501046643,-500.0,0.00028675,2]
[310354449,1704501046655,-500.0,0.00028675,2]
[310354450,1704501046667,-500.0,0.00028675,2]
[310354451,1704501046679,-500.0,0.00028675,2]
[310354452,1704501046692,-231.20520213,0.00028675,2]
[310354453,1704501046704,-500.0,0.00028675,2]
[310354454,1704501046716,-500.0,0.00028675,2]
[310354455,1704501046728,-500.0,0.00028675,2]
[310354456,1704501046740,-500.0,0.00028675,2]
[310354457,1704501046752,-500.0,0.00028675,2]
[310354458,1704501046765,-500.0,0.00028675,2]
[310354459,1704501046782,-500.0,0.00028675,2]
[310354460,1704501046797,-500.0,0.00028675,2]
[310354461,1704501046810,-500.0,0.00028675,2]
[310354462,1704501046825,-500.0,0.00028675,2]
[310354463,1704501046839,-626.18,0.00028675,2]
[310354464,1704501046854,-500.0,0.00028675,2]
[310354465,1704501046871,-500.0,0.00028675,2]
[310354466,1704501046885,-500.0,0.00028675,2]
[310354467,1704501046898,-500.0,0.00028675,2]
[310354468,1704501046911,-500.0,0.00028675,2]
[310354469,1704501046923,-500.0,0.00028675,2]
[310354470,1704501046936,-500.0,0.00028675,2]
[310354471,1704501046948,-500.0,0.00028675,2]